bitfinex/quotes_BTCUSD_20250714
["timestamp","ask_amount","ask_price","bid_price","bid_amount"]
[1752465933365,0.92701819,120580.0,120570.0,0.33168]
[1752465938781,0.51267078,120580.0,120570.0,0.33377]
[1752465938989,0.51795078,120580.0,120570.0,0.19876]
[1752465939193,0.92719819,120580.0,120570.0,0.3336]
[1752465940447,0.92719819,120580.0,120570.0,0.19876]
[1752465940640,0.92719819,120580.0,120570.0,0.33368]
[1752465940842,0.17795078,120580.0,120570.0,0.20085]
[1752465941072,0.58719819,120580.0,120570.0,0.19876]
[1752465941285,0.51795078,120580.0,120570.0,0.33364]
[1752465941496,0.92719819,120580.0,120570.0,0.33364]
[1752465941729,0.91919819,120580.0,120570.0,0.33364]
[1752465941929,0.92119819,120580.0,120570.0,0.33364]
[1752465942133,0.51495078,120580.0,120570.0,0.33364]
[1752465942331,0.92419819,120580.0,120570.0,0.33364]
[1752465942544,0.51495078,120580.0,120570.0,0.33364]
[1752465942813,0.47687078,120580.0,120570.0,0.20085]
[1752465943033,0.42842993,120580.0,120570.0,0.33569]
[1752465943223,0.42542993,120580.0,120570.0,0.33874]
[1752465943632,0.42842993,120580.0,120570.0,0.33874]
[1752465943954,0.42842993,120580.0,120570.0,0.257]
[1752465943955,0.34,120580.0,120570.0,0.257]
[1752465944108,0.34,120580.0,120570.0,0.3918]
[1752465944315,0.342,120580.0,120570.0,0.3918]
[1752465944724,0.03485,120610.0,120580.0,0.0531]
[1752465944923,0.08542993,120600.0,120580.0,0.3488]
[1752465945127,0.14782993,120600.0,120580.0,0.2957]
[1752465945291,0.34,120590.0,120580.0,0.2957]
[1752465945500,0.34,120590.0,120580.0,0.35394]
[1752465945692,0.34,120590.0,120580.0,0.48866]
[1752465946507,0.74,120590.0,120580.0,0.05824]
[1752465946812,0.74,120590.0,120580.0,0.19519331]
[1752465947024,0.74,120590.0,120580.0,0.19312]
[1752465947461,0.4,120590.0,120580.0,0.19312]
[1752465947665,0.402,120590.0,120580.0,0.19312]
[1752465947873,0.401,120590.0,120580.0,0.19308]
[1752465948049,0.001,120590.0,120580.0,0.21877065]
[1752465949137,0.001,120590.0,120580.0,0.08393065]
[1752465949364,0.001,120590.0,120580.0,0.21865065]
[1752465950096,0.001,120590.0,120580.0,0.23896]
[1752465950308,0.001,120590.0,120580.0,0.263812]
[1752465951177,0.001,120590.0,120580.0,0.105792]
[1752465951381,0.001,120590.0,120580.0,0.210672]
[1752465951588,0.01099148,120600.0,120580.0,0.210672]
[1752465952008,0.4,120590.0,120580.0,0.210672]
[1752465952216,0.4,120590.0,120580.0,0.210512]
[1752465952858,0.4,120590.0,120580.0,0.209512]
[1752465953479,0.4,120590.0,120580.0,0.233812]
[1752465953713,0.4,120590.0,120580.0,0.263572]
[1752465953914,0.35110279,120610.0,120580.0,0.413452]
[1752465954097,0.43653272,120610.0,120590.0,0.00207314]
[1752465954312,0.45107357,120610.0,120600.0,0.00209]
[1752465954518,0.45107357,120610.0,120600.0,0.13645]
[1752465954743,0.51237357,120610.0,120600.0,0.13645]
[1752465956010,0.51765357,120610.0,120580.0,0.224902]
[1752465956248,0.51905357,120610.0,120600.0,0.00209]
[1752465956665,0.52005357,120610.0,120590.0,0.13432]
[1752465956879,0.4,120600.0,120590.0,0.13432]
[1752465957051,0.4,120600.0,120590.0,0.13641]
[1752465957544,0.4,120600.0,120590.0,0.13629]
[1752465959933,0.4,120600.0,120590.0,0.00209]
[1752465960135,1.26611336,120600.0,120590.0,0.13396]
[1752465960343,0.4014,120590.0,120580.0,0.4907]
[1752465960555,0.76091258,120590.0,120580.0,0.49276]
[1752465960759,0.76091258,120590.0,120580.0,0.62676]
[1752465960965,0.86616336,120590.0,120580.0,0.4907]
[1752465961389,0.86616336,120590.0,120580.0,0.62466]
[1752465962449,0.50865078,120590.0,120580.0,0.32896]
[1752465962653,0.86816336,120590.0,120580.0,0.32896]
[1752465963081,0.86089651,120590.0,120580.0,0.32896]
[1752465964143,0.52089651,120590.0,120580.0,0.17896]
[1752465964789,0.16965078,120590.0,120580.0,0.17896]
[1752465968600,0.16965078,120590.0,120580.0,0.17864]
[1752465969261,0.50965078,120590.0,120580.0,0.17864]
[1752465969685,0.42842993,120590.0,120580.0,0.1807]
[1752465970164,0.42842993,120590.0,120580.0,0.18046]
[1752465971888,0.46260993,120590.0,120580.0,0.18046]
[1752465972112,0.84995566,120590.0,120580.0,0.1784]
[1752465972966,0.84995566,120590.0,120580.0,0.17792554]
[1752465975227,0.84995566,120590.0,120580.0,0.17776554]
[1752465975660,0.49870993,120590.0,120580.0,0.04674554]
[1752465975865,0.49550993,120590.0,120580.0,0.17982554]
[1752465976054,0.42842993,120590.0,120580.0,0.04674554]
[1752465976359,0.49870993,120590.0,120580.0,0.17974554]
[1752465977877,0.49550993,120590.0,120580.0,0.17974554]
[1752465978263,0.49342993,120590.0,120580.0,0.17974554]
[1752465979047,0.49550993,120590.0,120580.0,0.17974554]
[1752465979277,0.49550993,120590.0,120580.0,0.04674554]
[1752465979483,0.49550993,120590.0,120580.0,0.17974554]
[1752465979896,0.49870993,120590.0,120580.0,0.17974554]
[1752465981736,0.49870993,120590.0,120580.0,0.04468554]
[1752465981737,1.005918,120590.0,120580.0,0.04468554]
[1752465981903,0.95090212,120590.0,120580.0,0.31068554]
[1752465982551,0.94990212,120590.0,120580.0,0.31068554]
[1752465983158,0.95619413,120590.0,120580.0,0.31068554]
[1752465983365,0.9773681,120590.0,120580.0,0.31068554]
[1752465983679,0.91111308,120590.0,120580.0,0.31068554]
[1752465983883,0.89077676,120590.0,120580.0,0.31068554]
[1752465984626,0.89077676,120590.0,120580.0,0.17768554]
[1752465984892,0.94428166,120590.0,120580.0,0.04468554]
[1752465985048,1.11901492,120590.0,120580.0,0.03640372]
[1752465985250,1.12201492,120590.0,120580.0,0.0281219]
[1752465985459,0.95616369,120590.0,120580.0,0.0281219]
[1752465985650,0.96445563,120590.0,120580.0,0.01984008]
[1752465985854,0.93957906,120590.0,120580.0,0.15284008]
[1752465986058,0.91411308,120590.0,120580.0,0.01984008]
[1752465986288,0.87923591,120590.0,120580.0,0.15284008]
[1752465987067,0.89377676,120590.0,120580.0,0.15284008]
[1752465988762,0.89377676,120590.0,120580.0,0.01984008]
[1752465988944,0.89377676,120590.0,120580.0,0.15284008]
[1752465989791,0.89377676,120590.0,120580.0,0.01984008]
[1752465990293,0.89377676,120590.0,120580.0,0.15284008]
[1752465990874,0.52799018,120590.0,120580.0,0.15494008]
[1752465991216,0.54253103,120590.0,120580.0,0.15494008]
[1752465991785,0.50455103,120590.0,120580.0,0.15494008]
[1752465992000,0.44697078,120590.0,120580.0,0.15494008]
[1752465993118,0.44697078,120590.0,120580.0,0.15805008]
[1752465993334,0.43242993,120590.0,120580.0,0.15805008]
[1752465993770,0.42842993,120590.0,120580.0,0.15805008]
[1752465993955,0.42542993,120590.0,120580.0,0.02505008]
[1752465994180,0.42742993,120590.0,120580.0,0.15494008]
[1752465994438,0.004,120590.0,120580.0,0.08022339]
[1752465994657,0.004,120590.0,120580.0,0.15805008]
[1752465995796,0.004,120590.0,120580.0,0.15490008]
[1752465996026,0.002,120590.0,120580.0,0.15490008]
[1752465996477,0.002,120590.0,120580.0,0.15801008]
[1752465996692,0.002,120590.0,120580.0,0.21111008]
[1752465997424,0.002,120590.0,120580.0,0.18781008]
[1752465998060,0.002,120590.0,120580.0,0.07815008]
[1752465998290,0.002,120590.0,120580.0,0.21318339]
[1752465998507,0.002,120590.0,120580.0,0.02194008]
[1752465998722,0.002,120590.0,120580.0,0.15490008]
[1752465998934,0.4029,120600.0,120580.0,0.15490008]
[1752465999108,0.49149993,120600.0,120580.0,0.15490008]
[1752465999549,0.42542993,120600.0,120580.0,0.02712339]
[1752465999734,0.42542993,120600.0,120590.0,0.13607]
[1752465999917,0.42542993,120600.0,120590.0,0.13506]
[1752466001483,0.01110279,120610.0,120590.0,0.19127]
[1752466001696,0.40717,120630.0,120600.0,0.00311]
[1752466001910,0.08542993,120620.0,120610.0,0.13296]
[1752466002170,0.53217078,120620.0,120610.0,0.13506]
[1752466002606,0.54272061,120620.0,120610.0,0.13506]
[1752466002821,0.08542993,120620.0,120610.0,0.0021]
[1752466003028,0.08542993,120620.0,120610.0,0.13817]
[1752466003245,0.08942993,120620.0,120610.0,0.13817]
[1752466003683,0.09242993,120620.0,120610.0,0.13817]
[1752466004502,0.007,120620.0,120610.0,0.71549275]
[1752466004726,0.007,120620.0,120610.0,0.84633996]
[1752466004938,0.007,120620.0,120610.0,0.71341996]
[1752466005164,0.007,120620.0,120610.0,0.48693]
[1752466005365,0.01454085,120640.0,120610.0,0.48693]
[1752466005574,0.09997078,120640.0,120610.0,0.48382]
[1752466005809,0.09997078,120640.0,120620.0,0.00311]
[1752466006027,0.14104794,120640.0,120630.0,0.33374]
[1752466006244,0.17204794,120640.0,120630.0,0.33374]
[1752466006476,0.17396649,120640.0,120630.0,0.33374]
[1752466007081,0.52801153,120640.0,120630.0,0.19872]
[1752466007301,0.86801153,120640.0,120630.0,0.33164]
[1752466007491,0.87301153,120640.0,120630.0,0.33264]
[1752466008263,0.87701153,120640.0,120630.0,0.33264]
[1752466008743,0.87701153,120640.0,120630.0,0.19972]
[1752466008945,0.87701153,120640.0,120630.0,0.001]
[1752466009156,0.89734785,120640.0,120630.0,0.19868]
[1752466009325,0.81634085,120630.0,120620.0,0.19868]
[1752466009521,0.01454085,120600.0,120580.0,0.01984008]
[1752466009835,0.11622993,120590.0,120580.0,0.01984008]
[1752466010037,0.08542993,120590.0,120580.0,0.22062008]
[1752466010631,0.08542993,120590.0,120580.0,0.35550008]
[1752466011752,0.08542993,120590.0,120580.0,0.35350008]
[1752466011953,0.00317,120620.0,120580.0,0.27683008]
[1752466012166,0.34,120600.0,120580.0,0.22573008]
[1752466012369,0.45862993,120600.0,120590.0,0.13288]
[1752466012583,0.45862993,120600.0,120590.0,0.13498]
[1752466013880,0.45862993,120600.0,120590.0,0.0021]
[1752466014033,0.50832078,120600.0,120590.0,0.0021]
[1752466014243,0.86241582,120600.0,120590.0,0.13288]
[1752466015916,0.08094085,120590.0,120580.0,0.21852008]
[1752466016115,0.86241582,120590.0,120580.0,0.21852008]
[1752466016409,0.86241582,120590.0,120580.0,0.35140008]
[1752466017627,0.86241582,120590.0,120580.0,0.21852008]
[1752466017848,0.86241582,120590.0,120580.0,0.35136008]
[1752466018047,0.51349078,120590.0,120580.0,0.35136008]
[1752466018182,0.86741582,120590.0,120580.0,0.35136008]
[1752466018396,0.86241582,120590.0,120580.0,0.35136008]
[1752466018803,0.86741582,120590.0,120580.0,0.35136008]
[1752466019638,0.86741582,120590.0,120580.0,0.21852008]
[1752466019846,0.86741582,120590.0,120580.0,0.35136008]
[1752466021116,0.86741582,120590.0,120580.0,0.21852008]
[1752466021307,0.86741582,120590.0,120580.0,0.35136008]
[1752466022165,0.86741582,120590.0,120580.0,0.21852008]
[1752466022385,0.88775214,120590.0,120580.0,0.21852008]
[1752466022581,0.88775214,120590.0,120580.0,0.35136008]
[1752466026325,0.91276976,120590.0,120580.0,0.35136008]
[1752466027144,0.89243344,120590.0,120580.0,0.21852008]
[1752466027359,0.89243344,120590.0,120580.0,0.35136008]
[1752466028335,0.89243344,120590.0,120580.0,0.21852008]
[1752466028534,0.89243344,120590.0,120580.0,0.35132008]
[1752466029817,0.89243344,120590.0,120580.0,0.21852008]
[1752466030013,0.89243344,120590.0,120580.0,0.35132008]
[1752466030624,0.5415084,120590.0,120580.0,0.35132008]
[1752466030825,0.89243344,120590.0,120580.0,0.21852008]
[1752466031032,0.89243344,120590.0,120580.0,0.35132008]
[1752466031669,0.89243344,120590.0,120580.0,0.21852008]
[1752466031810,0.89243344,120590.0,120580.0,0.35132008]
[1752466032213,0.89243344,120590.0,120580.0,0.21852008]
[1752466032492,0.89243344,120590.0,120580.0,0.35132008]
[1752466032686,0.89243344,120590.0,120580.0,0.21852008]
[1752466033115,0.89243344,120590.0,120580.0,0.35132008]
[1752466033272,0.89243344,120590.0,120580.0,0.21852008]
[1752466033477,0.89243344,120590.0,120580.0,0.35132008]
[1752466034072,0.49668993,120590.0,120580.0,0.01984008]
[1752466034275,0.0613,120560.0,120550.0,0.19876]
[1752466034490,0.8840128,120560.0,120550.0,0.19876]
[1752466034693,0.0623,120540.0,120530.0,0.0002]
[1752466034899,0.50062497,120540.0,120530.0,0.33176]
[1752466035100,0.14969993,120540.0,120530.0,0.20108]
[1752466035334,0.50062497,120540.0,120530.0,0.33388]
[1752466035718,0.14969993,120540.0,120530.0,0.20108]
[1752466035929,0.50038097,120540.0,120530.0,0.20108]
[1752466036142,0.14945593,120540.0,120530.0,0.33388]
[1752466036356,0.50038097,120540.0,120530.0,0.70108]
[1752466036585,0.50038097,120540.0,120530.0,0.83384]
[1752466037630,0.51077808,120540.0,120530.0,0.83384]
[1752466038050,0.89163924,120540.0,120530.0,0.83176]
[1752466038540,0.89163924,120540.0,120530.0,0.82347392]
[1752466039025,0.89163924,120540.0,120530.0,0.81518784]
[1752466039230,0.53692718,120540.0,120530.0,0.81730784]
[1752466039429,0.51242389,120540.0,120530.0,0.68450784]
[1752466039633,0.45036789,120540.0,120530.0,0.81754784]
[1752466039836,0.08642993,120540.0,120530.0,0.68761784]
[1752466040038,0.001,120540.0,120530.0,0.74101784]
[1752466040183,0.001,120540.0,120530.0,0.87405784]
[1752466040409,0.36489106,120550.0,120530.0,0.87405784]
[1752466040607,0.34,120550.0,120540.0,0.13615]
[1752466040818,0.34,120550.0,120540.0,0.00523]
[1752466041018,0.35454085,120550.0,120540.0,0.13827]
[1752466041312,0.35454085,120550.0,120540.0,0.00523]
[1752466041511,0.35454085,120550.0,120540.0,0.13823]
[1752466041882,0.44197078,120550.0,120540.0,0.13823]
[1752466042169,0.44197078,120550.0,120540.0,0.19163]
[1752466042496,0.44197078,120550.0,120540.0,0.16803]
[1752466042910,0.44197078,120550.0,120540.0,0.00523]
[1752466043121,0.002,120550.0,120540.0,0.193624]
[1752466043328,0.002,120550.0,120540.0,0.54247504]
[1752466043535,0.002,120550.0,120540.0,0.41955746]
[1752466043737,0.002,120550.0,120540.0,0.54247504]
[1752466043939,0.002,120550.0,120540.0,0.19155]
[1752466044151,0.39238726,120580.0,120550.0,0.0534]
[1752466044359,0.39238726,120580.0,120560.0,0.13288]
[1752466044360,0.08542993,120570.0,120560.0,0.13288]
[1752466044583,0.08542993,120570.0,120560.0,0.135]
[1752466044996,0.09997078,120570.0,120560.0,0.00212]
[1752466045235,0.09997078,120570.0,120560.0,0.13512]
[1752466046276,0.09997078,120570.0,120560.0,0.19163]
[1752466046573,0.49997078,120570.0,120560.0,0.13823]
[1752466047184,0.49997078,120570.0,120530.0,1.03331288]
[1752466047392,0.08542993,120570.0,120560.0,0.0298]
[1752466047600,0.35006222,120580.0,120560.0,0.0298]
[1752466047801,0.42542993,120580.0,120560.0,0.03187365]
[1752466048011,0.82542993,120580.0,120560.0,0.03187365]
[1752466048437,0.82542993,120580.0,120570.0,0.1328]
[1752466048633,0.42542993,120580.0,120570.0,0.1626]
[1752466048911,0.34,120580.0,120570.0,0.16256]
[1752466049341,0.34,120580.0,120570.0,0.16463348]
[1752466049536,0.34,120580.0,120570.0,0.03187348]
[1752466049837,0.34,120580.0,120570.0,0.16463348]
[1752466050082,0.34,120580.0,120570.0,0.16256]
[1752466050298,0.34,120580.0,120570.0,0.13276]
[1752466050945,0.34,120580.0,120560.0,0.0386]
[1752466051152,0.34,120580.0,120570.0,0.13276]
[1752466051561,0.34,120580.0,120570.0,0.33152]
[1752466051783,0.34,120580.0,120570.0,0.23736]
[1752466052020,0.34,120590.0,120580.0,0.0298]
[1752466052227,0.34,120590.0,120580.0,0.04067331]
[1752466052434,0.410128,120600.0,120580.0,0.17136]
[1752466052435,0.4,120600.0,120580.0,0.17136]
[1752466052655,0.48542993,120600.0,120580.0,0.17136]
[1752466053464,0.003,120590.0,120580.0,0.16256]
[1752466053750,0.003,120590.0,120580.0,0.13276]
[1752466053977,0.48742993,120600.0,120580.0,0.13276]
[1752466054478,0.403,120600.0,120580.0,0.0386]
[1752466054548,0.403,120600.0,120590.0,0.13276]
[1752466054761,0.403,120600.0,120580.0,0.38952504]
[1752466054966,0.403,120600.0,120590.0,0.13276]
[1752466055173,0.405,120600.0,120590.0,0.13276]
[1752466055405,0.005,120600.0,120590.0,0.04067314]
[1752466055625,0.005,120600.0,120590.0,0.52435818]
[1752466055834,0.002,120600.0,120590.0,0.52228504]
[1752466056262,0.002,120600.0,120590.0,0.38952504]
[1752466056481,0.00293,120630.0,120610.0,0.0298]
[1752466056687,0.08542993,120620.0,120610.0,0.0298]
[1752466056868,0.08542993,120620.0,120610.0,0.16256]
[1752466057079,0.46633,120640.0,120610.0,0.16256]
[1752466057080,0.46633,120640.0,120610.0,0.16463279]
[1752466057289,0.56196149,120640.0,120610.0,0.17136]
[1752466057489,0.53166149,120640.0,120610.0,0.17136]
[1752466058732,0.53166149,120640.0,120610.0,0.0386]
[1752466058938,0.09856149,120640.0,120620.0,0.13272]
[1752466059149,0.11310234,120640.0,120630.0,0.19872]
[1752466059376,0.82835993,120640.0,120630.0,0.19872]
[1752466059590,0.82542993,120640.0,120630.0,0.19872]
[1752466060774,0.83042993,120640.0,120630.0,0.19872]
[1752466060993,0.83042993,120640.0,120630.0,0.33144]
[1752466061616,0.83042993,120640.0,120630.0,0.19872]
[1752466062089,0.83335993,120640.0,120630.0,0.33144]
[1752466062232,0.83635993,120640.0,120630.0,0.33144]
[1752466062447,0.83635993,120640.0,120630.0,0.19872]
[1752466062448,0.348,120640.0,120630.0,0.19872]
[1752466062674,0.35093,120640.0,120630.0,0.19872]
[1752466062883,0.35093,120640.0,120630.0,0.33144]
[1752466063307,0.35093,120640.0,120630.0,0.19872]
[1752466063517,0.003,120640.0,120630.0,0.19872]
[1752466063927,0.004,120640.0,120630.0,0.33144]
[1752466064567,0.004,120640.0,120630.0,0.19872]
[1752466064963,0.001,120640.0,120630.0,0.3314]
[1752466065172,0.002,120640.0,120630.0,0.3314]
[1752466066035,0.12558993,120640.0,120630.0,0.19872]
[1752466066243,0.15728993,120640.0,120630.0,0.3314]
[1752466067308,0.17183078,120640.0,120630.0,0.19872]
[1752466067518,0.51183078,120640.0,120630.0,0.3314]
[1752466067727,0.86275582,120640.0,120630.0,0.3314]
[1752466068174,0.86275582,120640.0,120630.0,0.19872]
[1752466068395,0.86275582,120640.0,120630.0,0.3314]
[1752466068623,0.86275582,120640.0,120630.0,0.19872]
[1752466069082,0.88046073,120640.0,120630.0,0.19872]
[1752466069258,0.88046073,120640.0,120630.0,0.3314]
[1752466070175,0.87946073,120640.0,120630.0,0.3314]
[1752466070381,0.88046073,120640.0,120630.0,0.3314]
[1752466070785,0.07724085,120620.0,120610.0,0.19868]
[1752466071011,0.87636073,120620.0,120610.0,0.19868]
[1752466071432,0.87636073,120620.0,120610.0,0.33136]
[1752466071646,0.97837062,120620.0,120610.0,0.19868]
[1752466071848,0.9612307,120620.0,120610.0,0.19868]
[1752466072089,0.96123063,120620.0,120610.0,0.33136]
[1752466072234,0.41724085,120610.0,120600.0,0.19868]
[1752466072449,0.81366073,120610.0,120600.0,0.13268]
[1752466072701,0.81366073,120610.0,120590.0,0.19868]
[1752466072915,0.87673073,120600.0,120590.0,0.19868]
[1752466073139,0.87886073,120600.0,120590.0,0.33136]
[1752466074199,0.88286073,120600.0,120590.0,0.33136]
[1752466077895,0.88286073,120600.0,120590.0,0.19868]
[1752466078111,0.88286073,120600.0,120590.0,0.33136]
[1752466079207,0.88286073,120600.0,120590.0,0.19868]
[1752466079685,0.88286073,120600.0,120590.0,0.33136]
[1752466080354,1.23378577,120600.0,120590.0,0.19868]
[1752466080569,0.88286073,120600.0,120590.0,0.33136]
[1752466081857,0.88086073,120600.0,120590.0,0.33136]
[1752466082279,0.88386073,120600.0,120590.0,0.33136]
[1752466082459,0.88086073,120600.0,120590.0,0.33136]
[1752466082797,0.88486073,120600.0,120590.0,0.33236]
[1752466083005,1.23578577,120600.0,120590.0,0.1995336]
[1752466084045,1.23378577,120600.0,120590.0,0.3322136]
[1752466084251,0.35454085,120590.0,120580.0,0.19872]
[1752466084461,0.85955582,120590.0,120580.0,0.19872]
[1752466085558,0.85955582,120590.0,120580.0,0.3314]
[1752466086398,0.85955582,120590.0,120580.0,0.3324]
[1752466086603,0.86255582,120590.0,120580.0,0.3324]
[1752466087261,0.86455582,120590.0,120580.0,0.3324]
[1752466087690,0.86455582,120590.0,120530.0,0.48362784]
[1752466087691,0.0653,120580.0,120570.0,0.19872]
[1752466087907,0.86125582,120580.0,120570.0,0.19872]
[1752466088132,0.86125582,120580.0,120560.0,0.19872]
[1752466088133,0.38714085,120570.0,120560.0,0.19872]
[1752466088358,0.82855582,120570.0,120560.0,0.33136]
[1752466088579,0.07984085,120560.0,120550.0,0.19872]
[1752466088800,0.87137686,120560.0,120550.0,0.19872]
[1752466089854,0.87037686,120560.0,120550.0,0.19872]
[1752466090073,0.87037686,120560.0,120550.0,0.33136]
[1752466090492,0.87037686,120560.0,120550.0,0.19872]
[1752466090706,0.87637686,120560.0,120550.0,0.33236]
[1752466091122,0.87437686,120560.0,120550.0,0.33236]
[1752466091567,0.87637686,120560.0,120550.0,0.33236]
[1752466091993,0.52545182,120560.0,120550.0,0.19972]
[1752466092202,0.87637686,120560.0,120550.0,0.3324]
[1752466094371,0.87637686,120560.0,120550.0,0.19972]
[1752466094567,0.87637686,120560.0,120550.0,0.33236]
[1752466099544,0.87637686,120560.0,120550.0,0.19972]
[1752466099754,0.87637686,120560.0,120550.0,0.33236]
[1752466104417,0.52545182,120560.0,120550.0,0.33236]
[1752466104616,0.87637686,120560.0,120550.0,0.19972]
[1752466104844,0.87637686,120560.0,120550.0,0.33236]
[1752466105080,0.45609182,120560.0,120550.0,0.19972]
[1752466105308,0.49185182,120560.0,120550.0,0.19972]
[1752466105528,0.87757686,120560.0,120550.0,0.33236]
[1752466106193,0.15185182,120560.0,120550.0,0.33236]
[1752466106412,0.49185182,120560.0,120550.0,0.33236]
[1752466107990,0.49385182,120560.0,120550.0,0.19972]
[1752466108208,0.84477686,120560.0,120550.0,0.33232]
[1752466108413,0.87757686,120560.0,120550.0,0.33232]
[1752466108798,0.87757686,120560.0,120550.0,0.19972]
[1752466108799,0.52665182,120560.0,120550.0,0.19972]
[1752466109001,0.87757686,120560.0,120550.0,0.33232]
[1752466109213,0.87757686,120560.0,120550.0,0.19972]
[1752466109436,0.87757686,120560.0,120550.0,0.33232]
[1752466110064,0.52465182,120560.0,120550.0,0.33232]
[1752466110545,0.52663182,120560.0,120550.0,0.33232]
[1752466110990,0.49383182,120560.0,120550.0,0.19972]
[1752466111419,0.49383182,120560.0,120550.0,0.33232]
[1752466112286,0.4938317,120560.0,120550.0,0.33232]
[1752466112635,0.4938317,120560.0,120550.0,0.1988]
[1752466112844,0.84475674,120560.0,120550.0,0.1988]
[1752466113447,0.87555674,120560.0,120550.0,0.1988]
[1752466114276,0.87555674,120560.0,120550.0,0.33136]
[1752466115066,0.08004085,120540.0,120530.0,0.67342784]
[1752466115319,0.86130582,120540.0,120530.0,0.80598784]
[1752466116105,0.86230582,120540.0,120530.0,0.80598784]
[1752466116318,0.86430582,120540.0,120530.0,0.80698784]
[1752466117933,0.88969985,120540.0,120530.0,0.80698784]
[1752466119380,0.88969985,120540.0,120530.0,0.67442784]
[1752466119610,0.88969985,120540.0,120530.0,0.80698784]
[1752466120432,0.53877481,120540.0,120530.0,0.80698784]
[1752466120611,0.88969985,120540.0,120530.0,0.80698784]
[1752466121263,0.53877481,120540.0,120530.0,0.80698784]
[1752466122430,0.50577481,120540.0,120530.0,0.67442784]
[1752466122644,0.08842993,120540.0,120530.0,0.67442784]
[1752466123125,0.10297078,120540.0,120530.0,0.80698784]
[1752466127915,0.10297078,120540.0,120530.0,0.71402784]
[1752466128114,0.10297078,120540.0,120530.0,0.84654784]
[1752466128980,0.08842993,120540.0,120530.0,0.71402784]
[1752466129385,0.08842993,120540.0,120530.0,0.84654784]
[1752466130410,0.42842993,120540.0,120530.0,0.84654784]
[1752466131642,0.343,120540.0,120530.0,0.84654784]
[1752466132415,0.343,120540.0,120530.0,1.19747288]
[1752466132842,0.003,120540.0,120530.0,1.49313288]
[1752466133426,0.42466189,120560.0,120530.0,1.45253288]
[1752466133641,0.34,120550.0,120540.0,0.174154]
[1752466133945,0.34,120550.0,120540.0,0.39052504]
[1752466134305,0.34,120550.0,120540.0,0.17208]
[1752466134716,0.42542993,120560.0,120550.0,0.0396]
[1752466135894,0.42542993,120560.0,120550.0,0.0318]
[1752466135895,0.42642993,120560.0,120550.0,0.0318]
[1752466136572,0.42642993,120560.0,120550.0,0.0406]
[1752466138266,0.341,120560.0,120550.0,0.52396504]
[1752466138887,0.001,120560.0,120550.0,0.52396504]
[1752466139099,0.001,120560.0,120550.0,0.0406]
[1752466139312,0.001,120560.0,120550.0,0.17304]
[1752466139735,0.001,120560.0,120550.0,0.68722504]
[1752466139934,0.001,120560.0,120550.0,0.81966504]
[1752466140439,0.001,120560.0,120550.0,0.68722504]
[1752466140672,0.001,120560.0,120550.0,0.81966504]
[1752466140929,0.001,120560.0,120550.0,0.43014]
[1752466141173,0.08542993,120560.0,120550.0,0.2967]
[1752466141401,0.86773043,120560.0,120550.0,0.001]
[1752466141611,0.86773043,120560.0,120550.0,0.1334]
[1752466142713,0.50799078,120560.0,120550.0,0.1334]
[1752466147488,0.50799078,120560.0,120550.0,0.001]
[1752466147694,0.50799078,120560.0,120550.0,0.1334]
[1752466152880,0.50799078,120560.0,120550.0,0.001]
[1752466153094,0.50799078,120560.0,120550.0,0.13336]
[1752466154494,0.47769078,120560.0,120550.0,0.13336]
[1752466154700,0.42642993,120560.0,120550.0,0.13336]
[1752466155468,0.42642993,120560.0,120550.0,0.38320185]
[1752466155693,0.42950993,120560.0,120550.0,0.13332]
[1752466155942,0.46250993,120560.0,120550.0,0.13332]
[1752466156173,0.51149078,120560.0,120550.0,0.13332]
[1752466160574,0.47909078,120560.0,120550.0,0.13332]
[1752466161918,0.47909078,120560.0,120550.0,0.33208]
[1752466163297,0.50919078,120560.0,120550.0,0.33208]
[1752466164286,0.50919078,120560.0,120550.0,0.332]
[1752466164452,0.47909078,120560.0,120550.0,0.19976]
[1752466164652,0.47705078,120560.0,120550.0,0.332]
[1752466164857,0.44097078,120560.0,120550.0,0.19976]
[1752466165108,0.44097078,120560.0,120550.0,0.69172026]
[1752466165828,0.001,120560.0,120550.0,0.59028026]
[1752466166035,0.001,120560.0,120550.0,0.59908026]
[1752466166241,0.001,120560.0,120550.0,0.73132026]
[1752466167177,0.001,120560.0,120550.0,0.59028026]
[1752466167411,0.001,120560.0,120550.0,0.72252026]
[1752466168234,0.001,120560.0,120550.0,0.73132026]
[1752466169069,0.001,120560.0,120550.0,1.02702026]
[1752466170663,0.001,120560.0,120550.0,0.89478026]
[1752466170840,0.001,120560.0,120550.0,1.01818026]
[1752466171445,0.001,120560.0,120550.0,1.01752853]
[1752466172824,0.001,120560.0,120550.0,0.98672853]
[1752466173240,0.001,120560.0,120550.0,0.85452853]
[1752466173451,0.00033566,120560.0,120550.0,0.98668853]
[1752466174361,0.00033566,120560.0,120550.0,0.62696827]
[1752466174584,0.00033566,120560.0,120550.0,0.98668853]
[1752466175041,0.12100559,120560.0,120550.0,0.62696827]
[1752466175241,0.15360559,120560.0,120550.0,0.49480827]
[1752466175394,0.15360559,120560.0,120550.0,0.62696827]
[1752466175900,0.8678667,120560.0,120550.0,0.49480827]
[1752466176075,0.8678667,120560.0,120550.0,0.62696827]
[1752466177887,0.50814644,120560.0,120550.0,0.62696827]
[1752466179339,0.50814644,120560.0,120550.0,0.49480827]
[1752466179572,0.50814644,120560.0,120550.0,0.62692827]
[1752466180295,0.50814644,120560.0,120550.0,0.33122827]
[1752466181567,0.50814644,120560.0,120550.0,0.69094853]
[1752466182207,0.50814644,120560.0,120550.0,0.33122827]
[1752466182881,0.45586559,120560.0,120550.0,0.55882853]
[1752466183095,0.45586559,120560.0,120550.0,0.69090853]
[1752466186327,0.42576559,120560.0,120550.0,0.69090853]
[1752466188125,0.00033566,120560.0,120550.0,0.72166853]
[1752466188341,0.00033566,120560.0,120550.0,0.73046853]
[1752466189158,0.00033566,120560.0,120550.0,0.72166853]
[1752466189369,0.00033566,120560.0,120550.0,0.36194827]
[1752466189581,0.00033566,120560.0,120550.0,0.72166853]
[1752466191255,0.00033566,120560.0,120550.0,0.69086853]
[1752466191479,0.03375566,120560.0,120550.0,0.69086853]
[1752466191687,0.00033566,120560.0,120550.0,0.69086853]
[1752466192106,0.00033566,120560.0,120550.0,0.98656853]